bitfinex/quotes_ETHUSD_20240711
["timestamp","ask_amount","ask_price","bid_price","bid_amount"]
[1720694971437,2.2621,3148.4,3147.9,1.48247045]
[1720694971638,2.2621,3148.4,3148.0,2.76374124]
[1720694971849,2.2621,3148.4,3148.1,1.10549553]
[1720694972158,2.2621,3148.4,3147.9,0.66747045]
[1720694972458,2.2621,3148.4,3148.0,2.76379183]
[1720694972665,2.2621,3148.4,3147.9,0.61151792]
[1720694972953,2.3979,3148.6,3148.0,2.82734872]
[1720694973175,2.3979,3148.6,3148.1,1.10552823]
[1720694973465,2.3979,3148.6,3148.2,2.76375577]
[1720694973664,2.3979,3148.6,3148.3,2.76361714]
[1720694973961,2.3979,3148.6,3148.1,3.84398045]
[1720694974162,2.3979,3148.6,3148.2,2.76348562]
[1720694974339,2.3979,3148.6,3148.1,4.04873041]
[1720694974538,2.3979,3148.6,3148.2,1.10545141]
[1720694974738,2.3979,3148.6,3148.1,4.04873041]
[1720694974939,2.3979,3148.6,3148.2,1.10546305]
[1720694975266,2.3979,3148.6,3148.1,0.87222041]
[1720694975431,2.3979,3148.6,3148.2,1.10547048]
[1720694975625,2.3979,3148.6,3148.1,0.87222041]
[1720694975851,2.3979,3148.6,3148.2,1.10546977]
[1720694976053,2.3979,3148.6,3148.1,0.87222041]
[1720694976330,2.3979,3148.6,3148.2,1.10546888]
[1720694976531,2.3979,3148.6,3148.1,0.87222041]
[1720694976831,2.3979,3148.6,3148.2,1.10546898]
[1720694977032,2.3979,3148.6,3148.1,0.87222041]
[1720694977337,2.3979,3148.6,3148.2,1.10546778]
[1720694977530,2.3979,3148.6,3148.1,4.04873041]
[1720694977730,2.3979,3148.6,3148.2,1.10546142]
[1720694977951,2.3979,3148.6,3148.1,4.04873041]
[1720694978264,2.3979,3148.6,3148.2,1.10546175]
[1720694978423,2.3979,3148.6,3148.1,4.04873041]
[1720694978628,2.3979,3148.6,3148.2,1.10546527]
[1720694978840,2.3979,3148.6,3148.1,4.04873041]
[1720694979134,2.3979,3148.6,3148.2,1.65858098]
[1720694979340,2.3979,3148.6,3148.2,0.55312009]
[1720694984141,2.3979,3148.6,3148.0,0.815]
[1720694984368,2.3979,3148.6,3148.1,1.10546973]
[1720694984537,2.3979,3148.6,3148.0,0.815]
[1720694984743,2.3979,3148.6,3148.1,1.10549085]
[1720694985037,2.3979,3148.6,3147.9,3.84412045]
[1720694985456,2.3979,3148.6,3148.0,2.76372745]
[1720694985780,2.3979,3148.6,3148.1,1.10549098]
[1720694986074,2.3979,3148.6,3147.9,3.84412045]
[1720694986256,2.3979,3148.6,3148.0,2.76371151]
[1720694986454,2.3979,3148.6,3148.1,1.1054846]
[1720694986649,2.3979,3148.6,3147.9,3.84412045]
[1720694986851,2.3979,3148.6,3148.0,2.76373125]
[1720694987052,2.3979,3148.6,3148.1,1.1054925]
[1720694987285,2.3979,3148.6,3147.9,3.84412045]
[1720694987489,2.3979,3148.6,3148.0,2.7637314]
[1720694987789,2.3979,3148.6,3148.1,1.10549256]
[1720694987946,2.3979,3148.6,3147.9,3.84412045]
[1720694988149,2.3979,3148.6,3148.0,2.7637314]
[1720694988353,2.3979,3148.6,3148.1,1.10549256]
[1720694988655,2.3979,3148.6,3147.9,4.95608249]
[1720694988983,2.3979,3148.6,3148.0,2.76372673]
[1720694989301,2.3979,3148.6,3148.1,1.10549069]
[1720694989454,2.3979,3148.6,3147.9,4.95608264]
[1720694989651,2.3979,3148.6,3148.0,2.76368627]
[1720694989877,2.3979,3148.6,3148.1,1.10547451]
[1720694990087,2.3979,3148.6,3147.9,4.95608264]
[1720694990258,2.3979,3148.6,3148.0,2.76368608]
[1720694990464,2.3979,3148.6,3147.9,4.95608264]
[1720694990465,2.3979,3148.6,3148.1,1.10547443]
[1720694990667,2.3979,3148.6,3147.9,4.95608264]
[1720694990868,2.3979,3148.6,3148.0,2.7636827]
[1720694991068,2.3979,3148.6,3148.1,1.10547308]
[1720694991269,2.3979,3148.6,3147.9,4.95608264]
[1720694991587,2.3979,3148.6,3148.0,2.76368246]
[1720694991788,2.3979,3148.6,3148.1,1.10547298]
[1720694991990,2.3979,3148.6,3147.9,4.95608264]
[1720694992194,2.3979,3148.6,3148.0,2.76368246]
[1720694992356,2.3979,3148.6,3148.1,1.10547367]
[1720694992558,2.3979,3148.6,3147.9,4.95608264]
[1720694992760,2.3979,3148.6,3148.0,3.44084627]
[1720694992993,2.3979,3148.6,3148.1,2.763682]
[1720694993192,2.3979,3148.6,3148.0,0.67716427]
[1720694993366,2.3979,3148.6,3148.1,2.76368227]
[1720694993561,2.3979,3148.6,3148.0,0.67716427]
[1720694993764,2.3979,3148.6,3148.1,2.76368381]
[1720694994086,2.3979,3148.6,3147.9,1.77943264]
[1720694994391,2.3979,3148.6,3148.0,2.7636874]
[1720694994695,2.3979,3148.6,3148.1,2.7636874]
[1720694994894,2.3979,3148.6,3147.9,0.66704003]
[1720694995189,2.3979,3148.6,3148.0,2.76369326]
[1720694995398,2.3979,3148.6,3148.1,2.76369326]
[1720694995689,2.2958,3149.0,3148.3,3.99129]
[1720694995890,2.2958,3149.0,3148.5,0.815]
[1720694996261,2.2958,3149.0,3148.3,4.65833003]
[1720694996487,2.2958,3149.0,3148.4,2.76337095]
[1720694996797,2.2958,3149.0,3148.5,1.10534838]
[1720694997094,2.2958,3149.0,3148.4,0.7421701]
[1720694997266,2.2958,3149.0,3148.5,1.10534216]
[1720694997472,2.2958,3149.0,3148.1,1.00056005]
[1720694997473,2.2958,3149.0,3148.2,0.66704003]
[1720694997663,2.2958,3149.0,3148.3,2.76352143]
[1720694998000,2.4942,3148.9,3148.1,1.48204003]
[1720694998163,2.4942,3148.9,3148.2,2.7635857]
[1720694998363,2.4942,3148.9,3148.3,2.7635857]
[1720694998589,2.4942,3148.9,3148.1,0.66704003]
[1720694998810,2.4942,3148.9,3148.2,4.24563815]
[1720694999094,2.4942,3148.9,3148.3,0.52461982]
[1720694999391,2.4942,3148.9,3148.4,2.76349312]
[1720694999598,2.4942,3148.9,3148.2,1.48204003]
[1720694999890,2.4942,3148.9,3148.3,2.7635182]
[1720695000096,2.4942,3148.9,3148.4,1.10540728]
[1720695000395,2.4942,3148.9,3148.2,1.48204003]
[1720695000601,2.4942,3148.9,3148.3,3.01177644]
[1720695000808,2.4942,3148.9,3148.4,1.10540657]
[1720695001003,2.4942,3148.9,3148.2,1.48204003]
[1720695001302,2.4942,3148.9,3148.3,2.76351935]
[1720695001605,2.4942,3148.9,3148.4,1.10540774]
[1720695001817,2.4942,3148.9,3148.2,1.48204003]
[1720695001967,2.4942,3148.9,3148.3,2.76352363]
[1720695002171,2.4942,3148.9,3148.4,1.92040945]
[1720695002364,2.4942,3148.9,3148.5,2.76332432]
[1720695002580,2.4942,3148.9,3148.5,0.06351485]
[1720695002874,2.4942,3148.9,3148.6,1.10533707]
[1720695003078,2.4942,3148.9,3148.6,0.26508917]
[1720695003280,2.4942,3148.9,3148.4,1.48204003]
[1720695003504,2.4942,3148.9,3148.5,2.76335325]
[1720695003810,2.4942,3148.9,3148.4,0.815]
[1720695004100,2.4942,3148.9,3148.5,2.76338222]
[1720695004294,2.4942,3148.9,3148.4,0.815]
[1720695004495,2.4942,3148.9,3148.5,1.80706283]
[1720695004701,2.4942,3148.9,3148.5,0.701708]
[1720695005418,2.4942,3148.9,3148.6,2.76329125]
[1720695005720,2.4942,3148.9,3148.5,0.701708]
[1720695005926,2.4942,3148.9,3148.6,1.1053184]
[1720695006086,2.4942,3148.9,3148.7,0.18070264]
[1720695010823,2.4942,3148.9,3148.5,0.701708]
[1720695011116,2.4942,3148.9,3148.3,4.65834308]
[1720695011309,2.4942,3148.9,3148.4,2.76332253]
[1720695011522,2.4942,3148.9,3148.5,2.76332253]
[1720695011724,2.4942,3148.9,3148.3,4.65834308]
[1720695011915,2.4942,3148.9,3148.4,2.763323]
[1720695012118,2.4942,3148.9,3148.5,2.763323]
[1720695012320,2.4942,3148.9,3148.4,0.84222157]
[1720695012526,2.4942,3148.9,3148.5,1.10533145]
[1720695012734,2.4942,3148.9,3148.4,0.84222157]
[1720695013042,2.4942,3148.9,3148.5,1.10532973]
[1720695013213,2.4942,3148.9,3148.6,0.19475513]
[1720695013509,2.4942,3148.9,3148.4,0.84222157]
[1720695013809,2.4942,3148.9,3148.5,2.76332463]
[1720695014004,2.4942,3148.9,3148.4,0.84222157]
[1720695014209,2.4942,3148.9,3148.5,2.763325]
[1720695014409,2.4942,3148.9,3148.4,0.84222157]
[1720695014601,2.4942,3148.9,3148.5,3.31338151]
[1720695014802,2.4942,3148.9,3148.5,0.55005646]
[1720695015130,2.44,3149.3,3148.5,0.55005646]
[1720695015332,2.44,3149.3,3148.6,1.10532428]
[1720695015499,2.44,3149.3,3148.7,2.7631224]
[1720695015703,2.44,3149.3,3148.8,1.44820239]
[1720695015900,2.44,3149.3,3148.8,0.34301555]
[1720695016226,2.44,3149.3,3148.6,0.66703308]
[1720695016542,2.44,3149.3,3148.7,2.76309003]
[1720695016746,2.44,3149.3,3148.6,3.176]
[1720695016948,2.44,3149.3,3148.7,2.76311981]
[1720695017241,2.44,3149.3,3148.6,3.176]
[1720695017414,2.44,3149.3,3148.7,3.60153458]
[1720695017614,2.44,3149.3,3148.7,0.83841695]
[1720695019150,2.44,3149.3,3148.8,1.10519626]
[1720695019325,2.44,3149.3,3148.7,0.83841695]
[1720695019529,2.44,3149.3,3148.8,1.10521203]
[1720695019733,2.44,3149.3,3148.7,0.83841695]
[1720695020057,2.44,3149.3,3148.8,1.10521255]
[1720695020218,2.44,3149.3,3148.7,0.83841695]
[1720695020420,2.44,3149.3,3148.8,0.46813688]
[1720695024221,2.44,3149.3,3148.6,3.176]
[1720695024418,2.44,3149.3,3148.7,2.76303011]
[1720695024641,2.44,3149.3,3148.6,3.176]
[1720695024939,2.44,3149.3,3148.7,2.76302973]
[1720695025141,2.44,3149.3,3148.6,3.176]
[1720695025340,2.44,3149.3,3148.7,1.10521412]
[1720695025654,2.44,3149.3,3148.6,4.3558616]
[1720695025833,2.44,3149.3,3148.7,1.10521426]
[1720695026023,2.44,3149.3,3148.6,4.3558616]
[1720695026223,2.44,3149.3,3148.7,1.10521259]
[1720695026418,2.44,3149.3,3148.6,4.3558616]
[1720695026740,2.44,3149.3,3148.7,1.10521376]
[1720695026949,2.44,3149.3,3148.6,4.3558616]
[1720695027136,2.44,3149.3,3148.7,1.10521449]
[1720695027331,2.44,3149.3,3148.6,4.3558616]
[1720695027556,2.44,3149.3,3148.7,1.10521316]
[1720695027763,2.44,3149.3,3148.6,4.3558616]
[1720695027937,2.44,3149.3,3148.7,1.10521347]
[1720695028258,2.44,3149.3,3148.6,4.3558616]
[1720695028456,2.44,3149.3,3148.7,1.10521439]
[1720695028648,2.44,3149.3,3148.6,4.3558616]
[1720695029174,2.44,3149.3,3148.7,1.1052145]
[1720695029370,2.44,3149.3,3148.6,4.3558616]
[1720695029579,2.44,3149.3,3148.7,1.74399887]
[1720695029870,2.44,3149.3,3148.7,0.63878699]
[1720695033372,2.44,3149.3,3148.8,1.10520812]
[1720695033543,2.44,3149.3,3148.7,1.45378699]
[1720695033742,2.44,3149.3,3148.8,1.10520936]
[1720695033967,2.44,3149.3,3148.7,1.45378699]
[1720695034190,2.44,3149.3,3148.8,1.1052036]
[1720695034396,2.44,3149.3,3148.7,1.45378699]
[1720695034715,2.44,3149.3,3148.8,1.10520273]
[1720695034884,2.44,3149.3,3148.7,1.45378699]
[1720695035070,2.44,3149.3,3148.8,1.10520265]
[1720695035270,2.44,3149.3,3148.7,1.45378699]
[1720695035586,2.44,3149.3,3148.8,1.105203]
[1720695035903,2.44,3149.3,3148.7,1.45378699]
[1720695036066,2.44,3149.3,3148.8,1.63485232]
[1720695036266,2.44,3149.3,3148.7,0.815]
[1720695036467,2.44,3149.3,3148.8,1.10520044]
[1720695036695,2.44,3149.3,3148.7,0.815]
[1720695036914,2.44,3149.3,3148.8,1.10520012]
[1720695037070,2.44,3149.3,3148.7,0.815]
[1720695037410,2.44,3149.3,3148.8,1.1052017]
[1720695037597,2.44,3149.3,3148.7,0.815]
[1720695037910,2.44,3149.3,3148.8,1.10520144]
[1720695038069,2.44,3149.3,3148.7,0.815]
[1720695038272,2.44,3149.3,3148.8,1.10520368]
[1720695038494,2.44,3149.3,3148.7,0.815]
[1720695038707,2.44,3149.3,3148.8,2.76300903]
[1720695038872,2.44,3149.3,3148.7,0.815]
[1720695039067,2.44,3149.3,3148.8,1.10520555]
[1720695039270,2.44,3149.3,3148.7,0.815]
[1720695039495,2.44,3149.3,3148.8,2.76301333]
[1720695039700,2.44,3149.3,3148.7,1.43578725]
[1720695039883,2.44,3149.3,3148.8,2.76301405]
[1720695040098,2.44,3149.3,3148.7,1.43578725]
[1720695040286,2.44,3149.3,3148.8,2.76301423]
[1720695040484,2.44,3149.3,3148.7,1.43578725]
[1720695040721,2.44,3149.3,3148.8,2.76301313]
[1720695041024,2.44,3149.3,3148.7,1.43578725]
[1720695041203,2.44,3149.3,3148.8,2.76301413]
[1720695041386,2.44,3149.3,3148.9,1.10520565]
[1720695041595,2.44,3149.3,3148.7,2.10251367]
[1720695041935,2.44,3149.3,3148.8,2.76301393]
[1720695042226,2.44,3149.3,3148.9,1.10520557]
[1720695042430,2.44,3149.3,3148.7,2.10251367]
[1720695042633,2.44,3149.3,3148.8,2.76301453]
[1720695042781,2.44,3149.3,3148.9,1.10520567]
[1720695042988,2.44,3149.3,3148.7,2.10251367]
[1720695043187,2.44,3149.3,3148.8,2.76301412]
[1720695043440,2.44,3149.3,3148.9,1.10520565]
[1720695043622,2.44,3149.3,3148.7,2.10251367]
[1720695043788,2.44,3149.3,3148.8,2.76301476]
[1720695043986,2.44,3149.3,3148.9,1.1052059]
[1720695044232,2.44,3149.3,3148.7,2.10251367]
[1720695044408,2.44,3149.3,3148.8,2.76301505]
[1720695044715,2.44,3149.3,3148.9,1.10520602]
[1720695045018,2.44,3149.3,3148.7,2.10251367]
[1720695045228,2.44,3149.3,3148.8,3.29088262]
[1720695045423,2.44,3149.3,3148.9,1.1052125]
[1720695045726,2.44,3149.3,3148.7,1.48172642]
[1720695045910,2.44,3149.3,3148.8,2.76303143]
[1720695046108,2.44,3149.3,3148.9,1.10521257]
[1720695046339,2.44,3149.3,3148.7,1.48243941]
[1720695046484,2.44,3149.3,3148.8,2.7630319]
[1720695046688,2.44,3149.3,3148.9,1.10521276]
[1720695046889,2.44,3149.3,3149.0,1.10514187]
[1720695047189,2.44,3149.3,3148.7,1.28840491]
[1720695047426,2.44,3149.3,3148.8,2.76298078]
[1720695047585,2.44,3149.3,3148.9,2.76298078]
[1720695047804,2.44,3149.3,3148.7,1.28840491]
[1720695048090,2.44,3149.3,3148.8,3.62712535]
[1720695048442,2.44,3149.3,3148.9,2.76298095]
[1720695048623,2.44,3149.3,3148.8,0.8641444]
[1720695048787,2.44,3149.3,3148.9,2.76299483]
[1720695048986,2.44,3149.3,3148.8,0.8641444]
[1720695049187,2.44,3149.3,3148.9,2.76299333]
[1720695049433,2.44,3149.3,3148.8,0.8641444]
[1720695049631,2.44,3149.3,3148.9,2.76299437]
[1720695049831,2.44,3149.3,3148.8,0.8641444]
[1720695050013,2.44,3149.3,3148.9,2.76299265]
[1720695050201,2.44,3149.3,3148.8,0.8641444]
[1720695050530,2.44,3149.3,3148.9,3.29584671]
[1720695050710,2.44,3149.3,3148.9,0.53285621]
[1720695051431,2.44,3149.3,3149.0,2.76282042]
[1720695051593,2.44,3149.3,3149.1,2.76281454]
[1720695051788,2.44,3149.3,3148.9,1.20040838]
[1720695052030,2.44,3149.3,3149.0,3.28691803]
[1720695052185,2.44,3149.3,3149.1,1.1051539]
[1720695052387,2.44,3149.3,3149.0,0.52403328]
[1720695052605,2.44,3149.3,3149.1,1.10514607]
[1720695052857,2.44,3149.3,3149.0,0.52403328]
[1720695053008,2.44,3149.3,3149.1,0.17244417]
[1720695053929,2.44,3149.3,3149.0,0.52403328]
[1720695054431,2.44,3149.3,3149.1,1.10516297]
[1720695054739,2.44,3149.3,3148.9,0.66755217]
[1720695054900,2.44,3149.3,3149.0,2.76292625]
[1720695055092,2.44,3149.3,3149.1,1.1051705]
[1720695055338,2.44,3149.3,3148.9,0.66755217]
[1720695055645,2.44,3149.3,3149.0,2.92971432]
[1720695055803,2.44,3149.3,3149.1,2.76282628]
[1720695056003,2.44,3149.3,3149.0,0.16688804]
[1720695056223,2.44,3149.3,3149.1,1.10514685]
[1720695056593,2.44,3149.3,3149.0,0.16688804]
[1720695056794,2.44,3149.3,3149.1,1.10514287]
[1720695057004,2.44,3149.3,3148.8,0.66755217]
[1720695057232,2.44,3149.3,3148.9,1.10528151]
[1720695057393,2.44,3149.3,3148.7,0.66755217]
[1720695057589,7.3,3149.8,3148.8,1.10531111]
[1720695057590,0.815,3149.0,3148.8,1.10531111]
[1720695057929,0.815,3149.0,3148.5,1.51385983]
[1720695057930,2.4371,3148.8,3148.5,0.51253157]
[1720695058106,2.4895,3148.7,3148.5,0.51253157]
[1720695058313,3.17592,3148.7,3148.5,0.51253157]
[1720695058511,2.4895,3148.6,3147.9,1.65836942]
[1720695058693,3.17602,3148.6,3147.8,0.815]
[1720695058898,2.4895,3148.5,3147.9,1.1055968]
[1720695059117,2.4895,3148.5,3147.8,0.815]
[1720695061656,2.4895,3148.5,3147.6,0.66719349]
[1720695061849,2.4895,3148.5,3147.5,3.79362181]
[1720695061850,2.4895,3148.5,3147.8,0.815]
[1720695063291,2.4895,3148.5,3147.5,2.79283157]
[1720695063292,2.4895,3148.5,3148.0,0.815]
[1720695063571,8.115,3149.0,3147.5,3.52326585]
[1720695063572,2.4496,3148.9,3148.3,0.815]
[1720695063870,2.4496,3148.9,3148.5,0.815]
[1720695064071,7.3,3149.0,3148.5,0.815]
[1720695067177,2.4348,3148.9,3148.1,0.66690531]
[1720695067371,2.4348,3148.9,3148.2,1.27210775]
[1720695067557,2.4348,3148.9,3148.2,0.16672633]
[1720695067950,2.4348,3148.9,3148.3,0.815]
[1720695073756,2.4348,3148.9,3148.3,0.87851804]
[1720695074079,2.4348,3148.9,3148.4,0.42216344]
[1720695074973,2.4348,3148.9,3148.5,0.815]
[1720695076189,2.2929,3149.1,3148.5,0.815]
[1720695076893,2.2929,3149.1,3148.4,0.42216344]
[1720695077049,2.2929,3149.1,3148.3,0.815]
[1720695082482,2.2929,3149.1,3148.3,0.715]
[1720695084555,2.2929,3149.1,3148.6,0.815]
[1720695084756,2.337,3149.5,3149.0,0.815]
[1720695089903,2.337,3149.5,3148.8,3.2301]
[1720695090103,2.337,3149.5,3148.8,1.773194]
[1720695092225,2.337,3149.5,3148.5,1.17880453]
[1720695092226,3.152,3149.5,3148.5,1.17880453]
[1720695092374,0.815,3149.3,3148.5,0.51253157]
[1720695092813,3.99032,3149.3,3148.5,0.51253157]
[1720695096725,6.35095,3149.2,3148.5,0.51253157]
[1720695096930,1.034127,3149.1,3148.5,0.51253157]
[1720695097078,4.209647,3149.1,3148.5,0.51253157]
[1720695097286,1.034127,3149.1,3148.5,0.51253157]
[1720695097518,3.17545,3149.2,3148.5,0.51253157]
[1720695097930,3.17561,3149.0,3148.5,0.51253157]
[1720695098382,6.35131,3149.0,3148.5,0.51253157]
[1720695098586,3.17561,3149.0,3148.5,0.51253157]
[1720695098815,3.99045,3149.2,3148.5,0.51253157]
[1720695099012,3.574615,3149.1,3148.5,0.51253157]
[1720695099186,3.17563,3149.0,3148.5,0.51253157]
[1720695107100,0.399045,3149.1,3148.5,0.51253157]
[1720695110536,3.574565,3149.1,3148.5,0.51253157]
[1720695110908,0.399045,3149.1,3148.5,0.51253157]
[1720695118572,0.3574495,3149.0,3148.5,0.51253157]
[1720695121341,3.99031,3149.3,3148.5,0.51253157]
[1720695123569,0.815,3149.3,3148.5,0.51253157]
[1720695123752,3.49379,3149.5,3148.5,0.51253157]
[1720695124169,3.17522,3149.4,3148.5,0.51253157]
[1720695124347,3.17522,3149.4,3148.5,0.96291473]
[1720695124544,0.3186,3149.5,3148.5,0.96291473]
[1720695125045,3.49377,3149.5,3148.6,2.4689]
[1720695125377,0.3186,3149.5,3148.7,2.4933]
[1720695126575,3.17505,3149.6,3148.7,2.4933]
[1720695126749,3.17505,3149.6,3148.9,2.2836]
[1720695128254,3.33405563,3149.7,3148.9,2.2836]
[1720695128450,10.47476,3149.9,3148.9,2.2836]
[1720695128657,0.3184,3150.2,3148.9,2.2836]
[1720695128658,5.83087,3150.2,3149.2,0.815]
[1720695128852,5.51247,3150.2,3149.3,2.3502]
[1720695129068,0.632747,3150.1,3149.3,2.3502]
[1720695129475,0.3184,3150.5,3149.4,3.2649]
[1720695129783,3.17421,3150.4,3149.5,2.4499]
[1720695130189,3.17421,3150.4,3149.6,0.815]
[1720695130366,3.17421,3150.4,3149.7,2.4499]
[1720695131474,3.98921,3150.4,3149.7,2.4499]
[1720695131678,4.5692527,3150.4,3149.7,2.4499]
[1720695135793,3.9894,3150.2,3149.7,2.4499]
[1720695136196,7.16389,3150.2,3149.7,2.4499]
[1720695136695,3.1745,3150.1,3149.7,2.4499]
[1720695138461,0.815,3150.0,3149.3,2.3607]
[1720695138667,3.57372,3149.9,3149.3,2.3607]
[1720695138993,3.98982,3149.8,3149.3,2.3607]
[1720695139188,3.17496,3149.7,3148.7,2.3607]
[1720695139493,0.815,3149.6,3148.7,2.3607]
[1720695139868,3.99022,3149.4,3148.7,2.3607]
[1720695140066,0.399022,3149.3,3148.7,2.3607]
[1720695140767,3.99021,3149.4,3148.7,2.3607]
[1720695143309,3.99008,3149.6,3148.7,2.3607]
[1720695143508,3.17511,3149.5,3148.7,2.3607]
[1720695144397,3.17511,3149.5,3148.7,3.1757]
[1720695144577,2.47598406,3149.9,3148.9,0.815]
[1720695144777,0.27943841,3149.8,3148.9,0.815]
[1720695144977,3.45423841,3149.8,3148.9,0.815]
[1720695146713,0.815,3149.7,3148.7,3.1757]
[1720695147309,3.17507,3149.6,3148.7,3.1757]
[1720695147610,0.399007,3149.5,3148.7,3.1757]
[1720695150410,0.815,3149.7,3148.7,3.1757]
[1720695150622,3.98991,3149.7,3148.7,3.1757]
[1720695150814,3.17504,3149.6,3148.7,3.1757]
[1720695151209,3.17512,3149.5,3148.7,3.1757]
[1720695151513,3.99012,3149.5,3148.7,2.3607]
[1720695151699,0.716516,3149.4,3148.7,2.3607]
[1720695151883,3.085816,3149.4,3148.7,2.3607]
[1720695152281,3.17531,3149.3,3148.7,2.3607]
[1720695152481,0.815,3149.1,3148.5,0.51253157]
[1720695152684,3.17561,3149.0,3148.5,0.51253157]
[1720695152929,0.716621,3148.9,3148.5,0.51253157]
[1720695154042,0.716621,3148.9,3147.8,3.17682]
[1720695154043,3.17581,3148.8,3147.9,0.815]
[1720695156440,3.17568,3149.0,3148.1,0.815]
[1720695156618,7.3,3149.4,3148.8,2.3575]
[1720695156939,7.3,3149.4,3149.0,0.815]
[1720695157137,7.3,3149.4,3148.8,3.1725]
[1720695157456,7.3,3149.4,3148.8,2.3575]
[1720695157634,1.047511,3149.3,3148.8,2.3575]
[1720695159612,7.3,3149.4,3148.8,3.1725]
[1720695160550,7.3,3149.4,3148.9,2.4061]
[1720695161963,11.28983,3149.8,3148.9,2.4061]
[1720695162170,3.98983,3149.8,3148.9,2.4061]
[1720695169868,7.16471,3149.8,3148.9,2.4061]
[1720695170063,0.716471,3149.7,3148.9,2.4061]
[1720695170280,0.815,3149.6,3148.9,2.4061]
[1720695170699,5.6603463,3150.2,3148.9,2.4061]
[1720695170849,0.815,3149.6,3148.9,2.4061]
[1720695172392,0.815,3149.2,3148.6,2.3886]
[1720695173303,7.1659,3149.2,3148.6,2.3886]
[1720695174349,3.17555,3149.1,3148.2,0.815]
[1720695174568,3.17555,3149.1,3148.3,2.2969]
[1720695174797,3.17562,3149.0,3148.3,2.2969]
[1720695175558,3.17581,3148.8,3148.3,2.2969]
[1720695177583,3.17594,3148.7,3148.0,2.4466]
[1720695179193,3.17601,3148.6,3148.0,2.4466]
[1720695180700,3.17616,3148.5,3147.7,2.93123157]
[1720695180901,3.17616,3148.5,3147.7,4.234395]
[1720695181099,3.17621,3148.4,3147.7,4.234395]
[1720695181861,3.17649,3148.2,3147.7,3.419395]
[1720695182059,3.17649,3148.2,3147.7,2.93123157]
[1720695182260,3.17653,3148.1,3147.7,2.93123157]
[1720695182499,3.17638,3148.3,3147.7,2.93123157]
[1720695183173,3.17638,3148.3,3147.7,3.74623157]
[1720695183859,3.17638,3148.3,3147.7,2.93123157]
[1720695184065,3.17638,3148.3,3147.7,3.30585473]
[1720695184780,3.17612,3148.5,3147.7,3.30585473]
[1720695184980,3.17612,3148.5,3147.7,4.12085473]
[1720695185386,3.17612,3148.5,3147.8,2.4297]
[1720695185595,3.99094,3148.7,3147.8,2.49323374]
[1720695185798,3.17594,3148.7,3147.9,1.23453885]
[1720695186703,3.17594,3148.7,3148.0,2.4297]
[1720695188304,3.99094,3148.7,3148.0,2.4297]
[1720695188506,3.17614,3148.5,3148.0,2.4297]
[1720695188686,3.99094,3148.7,3148.0,2.4297]
[1720695188886,3.17594,3148.7,3148.0,2.67267]
[1720695190714,5.6603463,3149.1,3148.2,2.3147]
[1720695190915,3.17542,3149.2,3148.3,2.37821977]
[1720695191410,0.815,3149.3,3148.3,2.37821977]
[1720695191613,2.474,3149.0,3148.4,0.63696198]
[1720695191816,0.815,3148.9,3148.3,2.3147]
[1720695192616,3.99077,3148.9,3148.3,2.3147]
[1720695192805,3.17582,3148.8,3148.3,2.3147]
[1720695193117,0.815,3148.7,3148.3,2.3147]
[1720695193521,0.815,3148.7,3148.1,2.4866]
[1720695195210,0.815,3148.7,3148.1,2.759557]
[1720695196126,3.99093,3148.7,3148.1,2.4866]
[1720695197823,0.815,3148.7,3148.1,2.4866]
[1720695198116,3.17588,3148.8,3148.1,2.4866]
[1720695198320,6.35179,3148.8,3148.1,2.4866]
[1720695199094,3.17592,3148.7,3148.1,2.4866]
[1720695203129,3.17588,3148.8,3148.1,2.4866]
[1720695203428,3.17588,3148.8,3148.1,2.73526]
[1720695204325,3.17596,3148.7,3148.1,2.4866]
[1720695206942,3.17601,3148.6,3148.1,2.4866]
[1720695207440,2.2755,3148.6,3147.8,2.2786]
[1720695207742,3.17652,3148.1,3147.7,0.51253157]
[1720695210942,2.4345,3148.0,3146.9,2.2965]
[1720695211128,3.17728,3147.4,3146.9,2.2965]
[1720695211517,3.99233,3147.3,3146.9,2.2965]
[1720695211714,3.17733,3147.3,3146.9,2.52615]
[1720695217017,3.17733,3147.3,3146.9,2.2965]
[1720695230382,3.17743,3147.2,3146.5,2.3204]
[1720695231465,3.99273,3146.9,3146.5,2.3204]
[1720695231984,5.53771,3147.1,3146.5,2.3204]
[1720695232162,5.53771,3147.1,3146.5,2.60369316]
[1720695232366,3.17763,3147.0,3146.5,2.60369316]
[1720695236664,3.17763,3147.0,3146.5,2.3204]
[1720695237680,0.815,3146.9,3146.4,0.51253157]
[1720695237985,3.99273,3146.9,3146.4,0.51253157]
[1720695238592,6.44613,3146.9,3146.4,0.51253157]
[1720695239491,3.17783,3146.8,3146.4,0.51253157]
[1720695239863,0.815,3146.7,3146.4,0.51253157]
[1720695243466,3.17783,3146.8,3146.4,0.51253157]
[1720695244091,5.48108,3147.2,3146.5,2.352]
[1720695244393,0.815,3147.1,3146.5,2.352]
[1720695244897,3.17769,3147.0,3146.5,2.352]
[1720695246487,0.815,3147.1,3146.5,2.352]
[1720695246689,3.99254,3147.1,3146.5,2.352]
[1720695247164,3.99254,3147.1,3146.5,2.63845316]
[1720695248801,0.815,3147.1,3146.5,2.63845316]
[1720695249101,6.48323163,3147.4,3146.5,2.63845316]
[1720695249102,0.815,3147.3,3146.5,2.63845316]
[1720695249306,5.6603463,3147.5,3146.5,3.45345316]
[1720695249307,6.4753463,3147.5,3146.5,3.45345316]
[1720695249470,6.4753463,3147.5,3146.6,3.19701147]
[1720695249670,9.6525563,3147.5,3146.6,3.19701147]
[1720695250777,9.6525563,3147.5,3146.7,2.3799]